bitfinex-derivatives/quotes_BTCF0:USTF0_20250208
["timestamp","ask_amount","ask_price","bid_price","bid_amount"]
[1738977248680,0.09063129,96609.0,96608.0,0.001]
[1738977249080,0.09063129,96609.0,96603.0,0.569299]
[1738977249277,0.09063129,96609.0,96603.0,0.568779]
[1738977249491,0.08963129,96609.0,96603.0,0.207979]
[1738977249694,0.09063129,96609.0,96603.0,0.568779]
[1738977249885,0.3608,96607.0,96603.0,0.001]
[1738977250687,0.3608,96607.0,96600.0,0.1]
[1738977250885,0.2069777,96605.0,96600.0,0.1]
[1738977251685,0.2069777,96605.0,96603.0,0.001]
[1738977252897,0.2079777,96605.0,96600.0,0.101]
[1738977253987,0.2089777,96605.0,96600.0,0.101]
[1738977254394,0.2089777,96605.0,96603.0,0.001]
[1738977255188,0.2069811,96603.0,96600.0,0.101]
[1738977256085,0.002,96605.0,96600.0,0.101]
[1738977256296,0.2069844,96602.0,96600.0,0.101]
[1738977256591,0.2069844,96602.0,96600.0,0.1]
[1738977257889,0.2079844,96602.0,96600.0,0.1]
[1738977258091,0.2089844,96602.0,96600.0,0.101]
[1738977261600,0.002,96602.0,96600.0,0.101]
[1738977263502,0.07976,96602.0,96600.0,0.101]
[1738977274111,0.002,96602.0,96600.0,0.101]
[1738977274415,0.07772,96601.0,96600.0,0.101]
[1738977276003,0.07872,96601.0,96600.0,0.101]
[1738977276407,0.07972,96601.0,96600.0,0.101]
[1738977278017,0.002,96601.0,96600.0,0.101]
[1738977285712,0.002,96601.0,96600.0,0.11717806]
[1738977286820,0.002,96601.0,96600.0,0.11717798]
[1738977288709,0.002,96601.0,96600.0,0.101]
[1738977304822,0.15429574,96609.0,96608.0,0.2069699]
[1738977305031,0.07768,96618.0,96614.0,0.206957]
[1738977305227,0.07768,96618.0,96615.0,0.0391]
[1738977305424,0.01075867,96617.0,96615.0,0.0391]
[1738977306126,0.01075867,96617.0,96616.0,0.2069527]
[1738977306326,0.07768,96618.0,96616.0,0.2069527]
[1738977306826,0.07768,96618.0,96617.0,0.037]
[1738977307225,0.21601062,96624.0,96618.0,0.2069484]
[1738977307424,0.21601062,96624.0,96620.0,0.2069424]
[1738977308626,0.22642859,96624.0,96622.0,0.2069395]
[1738977308820,0.00015524,96628.0,96622.0,0.2162]
[1738977309031,0.00015524,96628.0,96627.0,0.5677292]
[1738977311734,0.00315524,96628.0,96627.0,0.5677292]
[1738977313131,0.07764,96645.0,96627.0,0.3608]
[1738977313334,0.07764,96645.0,96635.0,0.16205934]
[1738977313536,0.07764,96645.0,96643.0,0.206894]
[1738977314634,0.08064,96645.0,96643.0,0.206894]
[1738977315024,0.07764,96645.0,96643.0,0.206894]
[1738977315222,0.08564,96645.0,96643.0,0.206894]
[1738977315931,0.09264,96645.0,96643.0,0.206894]
[1738977316632,0.1034567,96645.0,96643.0,0.206894]
[1738977321241,0.1034567,96645.0,96635.0,0.56197934]
[1738977321436,0.1034567,96645.0,96635.0,0.56145934]
[1738977322237,0.0168167,96645.0,96635.0,0.56145934]
[1738977322438,0.1004167,96645.0,96635.0,0.56245934]
[1738977322643,0.0944167,96645.0,96635.0,0.56245934]
[1738977322849,0.0974167,96645.0,96635.0,0.56245934]
[1738977325248,0.0974167,96645.0,96636.0,0.2069099]
[1738977326348,0.0924167,96645.0,96636.0,0.2069099]
[1738977326534,0.0994167,96645.0,96636.0,0.2079099]
[1738977327438,0.2068954,96643.0,96636.0,0.001]
[1738977327835,0.0358,96642.0,96636.0,0.001]
[1738977328636,0.0358,96642.0,96635.0,0.44238967]
[1738977328844,0.0358,96642.0,96636.0,0.001]
[1738977329139,0.0398,96642.0,96636.0,0.001]
[1738977329446,0.0398,96642.0,96635.0,0.44234967]
[1738977329646,0.0468,96642.0,96636.0,0.001]
[1738977331546,0.0428,96642.0,96636.0,0.001]
[1738977331742,0.0458,96642.0,96636.0,0.001]
[1738977332139,0.0458,96642.0,96635.0,0.28794117]
[1738977332140,0.0448,96642.0,96635.0,0.28894117]
[1738977332341,0.0458,96642.0,96635.0,0.28894117]
[1738977332539,0.0776,96641.0,96635.0,0.28894117]
[1738977332742,0.0776,96641.0,96635.0,0.2079115]
[1738977332949,0.0776,96641.0,96636.0,0.001]
[1738977334542,0.0776,96641.0,96635.0,0.2069115]
[1738977334748,0.0836,96641.0,96635.0,0.2079115]
[1738977335349,0.0776,96641.0,96635.0,0.2069115]
[1738977335542,0.0846,96641.0,96636.0,0.001]
[1738977336136,0.0776,96641.0,96635.0,0.2069115]
[1738977336343,0.0866,96641.0,96635.0,0.2079115]
[1738977337050,0.0876,96641.0,96635.0,0.2079115]
[1738977337547,0.0866,96641.0,96635.0,0.2079115]
[1738977337746,0.0876,96641.0,96636.0,0.001]
[1738977338549,0.0806,96641.0,96635.0,0.2079115]
[1738977338752,0.0866,96641.0,96637.0,0.2069074]
[1738977339044,0.24149038,96641.0,96637.0,0.2069074]
[1738977339249,0.23549038,96641.0,96637.0,0.2069074]
[1738977339453,0.23949038,96641.0,96637.0,0.2069074]
[1738977339650,0.24349038,96641.0,96637.0,0.2069074]
[1738977340056,0.23949038,96641.0,96638.0,0.2069044]
[1738977340351,0.24349038,96641.0,96638.0,0.2069044]
[1738977341153,0.24449038,96641.0,96638.0,0.2069044]
[1738977341347,0.23749038,96641.0,96638.0,0.2069044]
[1738977341548,0.05030522,96640.0,96638.0,0.2069044]
[1738977342851,0.05530522,96640.0,96638.0,0.2069044]
[1738977343150,0.06230522,96640.0,96638.0,0.2069044]
[1738977344844,0.05030522,96639.0,96638.0,0.2069044]
[1738977346145,0.05730522,96639.0,96638.0,0.2069044]
[1738977346446,0.06230522,96639.0,96638.0,0.2069044]
[1738977350959,0.012,96639.0,96638.0,0.2069044]
[1738977359362,0.18551943,96650.0,96638.0,0.4125264]
[1738977359557,0.18551943,96650.0,96649.0,0.3608]
[1738977359957,0.00015524,96654.0,96649.0,0.3608]
[1738977360156,0.00015524,96654.0,96653.0,0.2068735]
[1738977361054,0.00915524,96654.0,96653.0,0.2068735]
[1738977361758,0.01815524,96654.0,96653.0,0.2078735]
[1738977363365,0.01815524,96654.0,96653.0,0.002]
[1738977363564,0.05415524,96654.0,96653.0,0.002]
[1738977365862,0.05415524,96654.0,96653.0,0.2088735]
[1738977371182,0.05415524,96654.0,96643.0,0.18615514]
[1738977371478,0.2068928,96644.0,96643.0,0.18615514]
[1738977371667,0.2843728,96644.0,96643.0,0.18615514]
[1738977373070,0.2843728,96644.0,96643.0,0.18715514]
[1738977373273,0.2903728,96644.0,96643.0,0.18715514]
[1738977373875,0.2993728,96644.0,96643.0,0.18715514]
[1738977374778,0.2993728,96644.0,96643.0,0.001]
[1738977374779,0.34968111,96644.0,96643.0,0.001]
[1738977375176,0.36017936,96644.0,96643.0,0.001]
[1738977378984,0.36017936,96644.0,96643.0,4.487e-05]
[1738977380988,0.30987105,96644.0,96643.0,4.487e-05]
[1738977387486,0.02549825,96644.0,96643.0,0.56773977]
[1738977387678,0.18563645,96654.0,96650.0,0.2068786]
[1738977387879,0.18563645,96654.0,96651.0,0.2068762]
[1738977388080,0.19596957,96654.0,96651.0,0.2068762]
[1738977389286,0.20396957,96654.0,96651.0,0.2068762]
[1738977389479,0.20396957,96654.0,96650.0,0.001]
[1738977389480,0.21296957,96654.0,96653.0,0.2068735]
[1738977390180,0.20396957,96654.0,96653.0,0.2068735]
[1738977390384,0.20396957,96654.0,96653.0,0.5676735]
[1738977390385,0.01715524,96654.0,96653.0,0.5676735]
[1738977390876,0.00915524,96654.0,96653.0,0.5686735]
[1738977391085,0.01115524,96654.0,96653.0,0.5696735]
[1738977398289,0.01115524,96654.0,96653.0,0.2088735]
[1738977398589,0.01115524,96654.0,96653.0,0.002]
[1738977399183,0.21802664,96654.0,96653.0,0.002]
[1738977399387,0.37195524,96654.0,96639.0,0.18574965]
[1738977399591,0.2069013,96640.0,96639.0,0.18574965]
[1738977399792,0.2843413,96640.0,96639.0,0.18574965]
[1738977401197,0.07744,96640.0,96639.0,0.18574965]
[1738977401593,0.07744,96640.0,96639.0,0.18674965]
[1738977402291,0.07744,96640.0,96639.0,0.18574965]
[1738977402595,0.08744,96640.0,96639.0,0.18674965]
[1738977404199,0.09772253,96640.0,96639.0,0.18674965]
[1738977405695,0.02028253,96640.0,96639.0,0.18674965]
[1738977406094,0.02028253,96640.0,96639.0,0.001]
[1738977421015,0.01,96640.0,96639.0,0.001]
[1738977425808,0.01,96640.0,96639.0,0.3618]
[1738977428816,0.01,96640.0,96639.0,0.001]
[1738977429016,0.01,96640.0,96639.0,0.3618]
[1738977430518,0.01,96640.0,96639.0,0.001]
[1738977430723,0.01,96640.0,96639.0,0.3618]
[1738977436612,0.0774,96652.0,96644.0,0.206892]
[1738977437713,0.0864,96652.0,96644.0,0.207892]
[1738977438213,0.0914,96652.0,96644.0,0.002]
[1738977438415,0.0914,96652.0,96646.0,0.2068882]
[1738977439419,0.0914,96652.0,96647.0,0.3608]
[1738977439912,0.10552392,96652.0,96647.0,0.3608]
[1738977440421,0.10552392,96652.0,96646.0,0.001]
[1738977440422,0.3608,96650.0,96646.0,0.001]
[1738977440609,0.0359,96649.0,96646.0,0.002]
[1738977441016,0.2068858,96648.0,96646.0,0.002]
[1738977441315,0.2068858,96648.0,96646.0,0.001]
[1738977441514,0.2068858,96648.0,96647.0,0.002]
[1738977441914,0.2068858,96648.0,96647.0,0.001]
[1738977442309,0.2068858,96648.0,96646.0,0.002]
[1738977442515,0.2068858,96648.0,96646.0,0.001]
[1738977442725,0.2128858,96648.0,96647.0,0.001]
[1738977444420,0.2128858,96648.0,96647.0,0.002]
[1738977444421,0.2178858,96648.0,96647.0,0.002]
[1738977445124,0.2178858,96648.0,96647.0,0.001]
[1738977445317,0.5786858,96648.0,96647.0,0.001]
[1738977445515,0.5786858,96648.0,96647.0,0.002]
[1738977458230,0.5786858,96648.0,96634.0,0.18579879]
[1738977458231,0.3718,96648.0,96634.0,0.18579879]
[1738977458432,0.206912,96635.0,96634.0,0.18579879]
[1738977458621,0.284192,96635.0,96634.0,0.18579879]
[1738977459020,0.2069227,96630.0,96629.0,0.24752473]
[1738977459231,0.2069377,96623.0,96622.0,0.30940592]
[1738977460829,0.2069644,96611.0,96605.0,0.30940592]
[1738977461028,0.07728,96610.0,96605.0,0.30940592]
[1738977461219,0.2069714,96608.0,96605.0,0.30940592]
[1738977462430,0.2079714,96608.0,96605.0,0.31640592]
[1738977463930,0.2089714,96608.0,96605.0,0.32540592]
[1738977464428,0.2089714,96608.0,96605.0,0.016]
[1738977465133,0.22201248,96608.0,96605.0,0.016]
[1738977468725,0.22201248,96608.0,96605.0,0.00041757]
[1738977473129,0.2069741,96606.0,96605.0,0.00041757]
[1738977475531,0.2069833,96602.0,96600.0,0.1]
[1738977476625,0.2079833,96602.0,96600.0,0.102]
[1738977478230,0.2089833,96602.0,96600.0,0.111]
[1738977479436,0.3608,96601.0,96600.0,0.111]
[1738977481439,0.3608,96601.0,96600.0,0.1]
[1738977481642,0.3628,96601.0,96600.0,0.111]
[1738977489032,0.3628,96601.0,96585.0,0.03592]
[1738977489346,0.3608,96589.0,96581.0,0.0372]
[1738977489546,0.2070234,96584.0,96581.0,0.0372]
[1738977490242,0.2070234,96584.0,96573.0,0.39562]
[1738977490243,0.2070427,96574.0,96573.0,0.00052]
[1738977490435,0.2070577,96567.0,96560.0,0.3718071]
[1738977490631,0.2842977,96567.0,96560.0,0.3718071]
[1738977490837,0.2070701,96562.0,96560.0,0.3718071]
[1738977491046,0.07724,96561.0,96560.0,0.3712871]
[1738977491748,0.07724,96563.0,96560.0,0.3712871]
[1738977492346,0.3608,96561.0,96540.0,0.49504947]
[1738977492536,0.3608,96561.0,96546.0,0.43316829]
[1738977492537,0.5679006,96547.0,96546.0,0.43316829]
[1738977492847,0.6451406,96547.0,96546.0,0.43316829]
[1738977493739,0.43804,96547.0,96542.0,0.00052]
[1738977493938,0.43804,96547.0,96534.0,0.03532]
[1738977494142,0.43804,96547.0,96529.0,0.37264694]
[1738977494143,0.12366178,96544.0,96529.0,0.37264694]
[1738977494442,0.20713,96534.0,96529.0,0.37264694]
[1738977494649,0.20713,96534.0,96529.0,0.37212694]
[1738977495537,0.2071371,96530.0,96529.0,0.37212694]
[1738977496844,0.2843771,96530.0,96529.0,0.37212694]
[1738977497048,0.29729979,96530.0,96529.0,0.37212694]
[1738977498048,0.29829979,96530.0,96529.0,0.37612694]
[1738977498248,0.09216269,96530.0,96529.0,0.37612694]
[1738977498747,0.01492269,96530.0,96529.0,0.004]
[1738977502445,0.2071398,96529.0,96511.0,0.2071762]
[1738977503644,0.2081398,96529.0,96511.0,0.2081762]
[1738977504550,0.2091398,96529.0,96511.0,0.2081762]
[1738977504750,0.207143,96528.0,96511.0,0.2081762]
[1738977505142,0.207143,96528.0,96520.0,5.359e-05]
[1738977505344,0.2071529,96523.0,96520.0,5.359e-05]
[1738977505549,0.002,96529.0,96520.0,5.359e-05]
[1738977505848,0.2071559,96522.0,96520.0,5.359e-05]
[1738977507752,0.2081559,96522.0,96520.0,5.359e-05]
[1738977507954,0.2081559,96522.0,96506.0,0.02691819]
[1738977508153,0.2081559,96522.0,96505.0,0.3608]
[1738977508450,0.567959,96520.0,96506.0,0.2071876]
[1738977508642,0.2071771,96512.0,96505.0,0.3608]
[1738977508842,0.2844171,96512.0,96505.0,0.3608]
[1738977509561,0.2844171,96512.0,96500.0,0.1]
[1738977509562,0.43804,96512.0,96500.0,0.1]
[1738977509746,0.3608,96501.0,96486.0,0.073]
[1738977510559,0.0354,96500.0,96486.0,0.073]
[1738977510754,0.15906178,96500.0,96486.0,0.073]
[1738977510945,0.0353,96499.0,96486.0,0.074]
[1738977511455,0.2425051,96499.0,96486.0,0.074]
[1738977511649,0.2425051,96499.0,96486.0,0.073]
[1738977511851,0.2425051,96499.0,96486.0,0.074]
[1738977512350,0.2435051,96499.0,96486.0,0.074]
[1738977512755,0.07824,96499.0,96498.0,0.3608]
[1738977513055,0.07824,96499.0,96489.0,0.12366178]
[1738977513257,0.07824,96499.0,96491.0,0.2072206]
[1738977513555,0.07924,96499.0,96492.0,0.0378]
[1738977514146,0.001,96499.0,96492.0,0.0378]
[1738977514347,0.01481563,96499.0,96492.0,0.0378]
[1738977514554,0.01381563,96499.0,96492.0,0.0378]
[1738977514859,0.01481563,96499.0,96492.0,0.0378]
[1738977515055,0.01481563,96499.0,96489.0,0.00698285]
[1738977515256,0.01381563,96499.0,96489.0,0.12366178]
[1738977515459,0.002,96499.0,96497.0,0.2072073]
[1738977515755,0.002,96499.0,96498.0,0.3608]
[1738977515954,0.002,96499.0,96492.0,0.001]
[1738977516259,0.3608,96495.0,96472.0,0.2072602]
[1738977516558,0.2072298,96487.0,96472.0,0.2072602]
[1738977516750,0.00015541,96493.0,96472.0,0.2072602]
[1738977517053,0.00015541,96493.0,96480.0,0.12366178]
[1738977517354,0.2072208,96491.0,96483.0,0.2072376]
[1738977518149,0.00015541,96493.0,96489.0,0.3608]
[1738977518356,0.00115541,96493.0,96489.0,0.3608]
[1738977518753,0.00115541,96493.0,96492.0,0.2072186]
[1738977520650,0.00015541,96493.0,96492.0,0.2072186]
[1738977520853,0.00115541,96493.0,96492.0,0.2072186]
[1738977522067,0.00115541,96493.0,96490.0,0.0351]
[1738977523962,0.00015541,96493.0,96491.0,0.2072193]
[1738977524162,0.00115541,96493.0,96491.0,0.2072193]
[1738977524349,0.00215541,96493.0,96492.0,0.0365]
[1738977525059,0.00115541,96493.0,96492.0,0.0365]
[1738977525470,0.00115541,96493.0,96491.0,0.2072193]
[1738977526054,0.00115541,96493.0,96481.0,0.3608]
[1738977526260,0.00115541,96493.0,96487.0,0.2072287]
[1738977526557,0.03605541,96493.0,96487.0,0.2072287]
[1738977527262,0.03605541,96493.0,96470.0,0.3608]
[1738977527263,0.207252,96477.0,96470.0,0.5680644]
[1738977527467,0.2072576,96474.0,96470.0,0.5680644]
[1738977527660,0.0349,96473.0,96470.0,0.5680644]
[1738977527862,0.2072615,96472.0,96470.0,0.3608]
[1738977528170,0.0349,96473.0,96450.0,0.48446178]
[1738977528367,0.2072808,96464.0,96452.0,0.2073026]
[1738977528758,0.2072808,96464.0,96453.0,0.2073006]
[1738977529467,0.2072861,96461.0,96453.0,0.2073006]
[1738977530460,0.2082861,96461.0,96453.0,0.2073006]
[1738977530968,0.2092861,96461.0,96453.0,0.2073006]
[1738977531370,0.002,96461.0,96453.0,0.2073006]
[1738977531560,0.2072976,96456.0,96450.0,0.3608]
[1738977533274,0.2082976,96456.0,96450.0,0.3608]
[1738977533474,0.2092976,96456.0,96450.0,0.3608]
[1738977533862,0.002,96456.0,96450.0,0.3608]
[1738977534070,0.002,96456.0,96455.0,0.2072981]
[1738977536770,0.001,96456.0,96455.0,0.2072981]
[1738977536973,0.002,96456.0,96455.0,0.2072981]
[1738977537873,0.15451868,96472.0,96471.0,0.2072637]
[1738977538582,0.15451868,96472.0,96471.0,0.2422637]
[1738977539377,0.15551868,96472.0,96471.0,0.2432637]
[1738977539971,0.15651868,96472.0,96471.0,0.2442637]
[1738977541882,0.00215549,96472.0,96471.0,0.2442637]
[1738977542976,0.15436319,96486.0,96471.0,0.2442637]
[1738977542977,0.15436319,96486.0,96485.0,0.2072336]
[1738977543178,0.15436319,96486.0,96485.0,0.5680336]
[1738977543571,0.15436319,96486.0,96485.0,0.2072336]
[1738977543776,0.15436319,96486.0,96485.0,0.5680336]
[1738977544476,0.0356,96489.0,96485.0,0.3608]
[1738977544781,0.0356,96489.0,96488.0,0.2072272]
[1738977545775,0.07265549,96495.0,96491.0,0.2072206]
[1738977546972,0.07465549,96495.0,96488.0,0.001]
[1738977547171,0.07465549,96495.0,96494.0,0.2072143]
[1738977548685,0.00215549,96495.0,96494.0,0.5680143]
[1738977549075,0.00015549,96495.0,96494.0,0.5680143]
[1738977549275,0.00115549,96495.0,96494.0,0.5680143]
[1738977549986,0.00215549,96495.0,96494.0,0.5680143]
[1738977550684,0.00115549,96495.0,96494.0,0.5680143]
[1738977551075,0.00515549,96495.0,96494.0,0.5680143]
[1738977565994,0.2072162,96494.0,96470.0,0.12366178]
[1738977566184,0.2072395,96483.0,96470.0,0.33092658]
[1738977566381,0.0335,96482.0,96470.0,0.12366178]
[1738977566589,0.0681,96482.0,96472.0,0.20726]
[1738977567586,0.0681,96482.0,96476.0,0.00215549]
[1738977568292,0.0691,96482.0,96476.0,0.00215549]
[1738977569390,0.2072422,96481.0,96476.0,0.00215549]
[1738977569598,0.2072422,96481.0,96476.0,0.00415549]
[1738977570696,0.2082422,96481.0,96476.0,0.00215549]
[1738977570889,0.2082422,96481.0,96476.0,0.00415549]
[1738977570890,0.2092422,96481.0,96476.0,0.00415549]
[1738977574002,0.07724,96480.0,96476.0,0.00415549]
[1738977574201,0.2072508,96477.0,96476.0,0.00415549]
[1738977574504,0.5680508,96477.0,96476.0,0.00415549]
[1738977575098,0.2072762,96466.0,96461.0,0.3608]
[1738977575298,0.2072785,96465.0,96461.0,0.3608]
[1738977575499,0.0348,96464.0,96461.0,0.3608]
[1738977575998,0.0328,96463.0,96461.0,0.3608]
[1738977576596,0.0328,96463.0,96461.0,0.3628]
[1738977577199,0.0338,96463.0,96461.0,0.002]
[1738977577403,0.207283,96462.0,96461.0,0.002]
[1738977578791,0.208283,96462.0,96461.0,0.002]
[1738977579097,0.2073067,96451.0,96450.0,0.00052]
[1738977579399,0.2073067,96451.0,96437.0,0.3608]
[1738977579597,0.2073112,96449.0,96437.0,0.3608]
[1738977579790,0.07724,96448.0,96437.0,0.3608]
[1738977579995,0.2073155,96447.0,96437.0,0.3608]
[1738977580394,0.07724,96448.0,96437.0,0.3608]
[1738977580395,0.2073231,96444.0,96437.0,0.3608]
[1738977580598,0.033,96443.0,96437.0,0.3608]
[1738977581502,0.2073332,96439.0,96431.0,0.2073478]
[1738977582000,0.2073332,96439.0,96429.0,0.3608]
[1738977582001,0.034,96443.0,96433.0,0.2073433]
[1738977582701,0.001,96439.0,96434.0,0.2073418]
[1738977583194,0.2073413,96435.0,96425.0,0.3608]
[1738977583398,0.3608,96439.0,96425.0,0.3608]
[1738977583798,0.3618,96439.0,96432.0,0.2073459]
[1738977584605,0.3618,96439.0,96425.0,0.3608]
[1738977584606,0.07724,96438.0,96436.0,0.2073388]
[1738977584806,0.001,96439.0,96438.0,0.2073346]
[1738977585006,0.07824,96439.0,96438.0,0.2073346]
[1738977585197,0.001,96439.0,96438.0,0.2073346]
[1738977585599,0.002,96439.0,96438.0,0.2073346]
[1738977586512,0.002,96439.0,96425.0,0.3608]
[1738977586699,0.2073385,96437.0,96430.0,0.2073518]
[1738977587004,0.001,96439.0,96425.0,0.3608]
[1738977587205,0.002,96439.0,96433.0,0.2073453]
[1738977587605,0.002,96439.0,96434.0,0.2073421]
[1738977587805,0.001,96439.0,96437.0,0.2073353]
[1738977589403,0.002,96439.0,96437.0,0.2073353]
[1738977593215,0.002,96439.0,96436.0,0.3608]
[1738977593216,0.0123317,96451.0,96438.0,0.0365]
[1738977593519,0.11206,96468.0,96452.0,0.2073045]
[1738977593709,0.01230248,96458.0,96452.0,0.2073045]
[1738977594310,1e-08,96453.0,96452.0,0.2073045]
[1738977594612,0.54636107,96482.0,96471.0,0.2072619]
[1738977594811,0.54728107,96482.0,96473.0,0.3608]
[1738977595414,0.36172,96482.0,96473.0,0.3608]
[1738977595714,0.002,96474.0,96473.0,0.3608]
[1738977596417,0.003,96474.0,96473.0,0.3608]
[1738977596918,0.009,96474.0,96473.0,0.3608]
[1738977598921,0.00015549,96483.0,96482.0,0.2072401]
[1738977599212,0.00015549,96483.0,96482.0,0.5680401]
[1738977600010,0.00915549,96483.0,96482.0,0.5680401]
[1738977600810,0.0355,96502.0,96495.0,0.2072111]
[1738977601025,0.0473686,96502.0,96500.0,0.3608]
[1738977602518,0.0118686,96502.0,96500.0,0.5680008]
[1738977602823,0.009,96502.0,96500.0,0.5680008]
[1738977603124,0.018,96502.0,96500.0,0.5680008]
[1738977603910,0.00015549,96511.0,96500.0,0.3618]
[1738977604110,0.00015549,96511.0,96510.0,0.3608]
[1738977605213,0.00415549,96511.0,96510.0,0.3608]
[1738977605521,0.00415549,96511.0,96510.0,0.20533774]
[1738977605815,0.00715549,96511.0,96510.0,0.20533774]
[1738977606909,0.18556107,96524.0,96523.0,0.207152]
[1738977607105,0.18556107,96524.0,96523.0,0.567952]
[1738977607307,0.01186584,96541.0,96523.0,0.3608]
[1738977607612,0.24741476,96544.0,96536.0,0.5679241]
[1738977607814,0.1534444,96538.0,96536.0,0.5679241]
[1738977608724,0.007,96537.0,96536.0,0.5679241]
[1738977609123,0.1534444,96538.0,96536.0,0.5689241]
[1738977609124,0.1604444,96538.0,96536.0,0.5689241]
[1738977609618,0.18413328,96545.0,96536.0,0.3618]
[1738977609819,0.18413328,96545.0,96544.0,0.567907]
[1738977610922,0.19013328,96545.0,96544.0,0.568907]
[1738977613309,0.006,96545.0,96544.0,0.568907]
[1738977614416,0.00015541,96546.0,96544.0,0.568907]
[1738977615622,0.04657273,96562.0,96561.0,0.2070706]
[1738977615927,0.035,96562.0,96561.0,0.5678706]
[1738977616925,0.042,96562.0,96561.0,0.5688706]
[1738977617713,0.043,96562.0,96561.0,0.5698706]
[1738977624328,0.00015541,96571.0,96566.0,0.2070598]
[1738977624522,0.00015541,96571.0,96570.0,0.2070512]
[1738977625225,0.00015541,96571.0,96570.0,0.5678512]
[1738977626024,0.0643,96578.0,96570.0,0.3628]
[1738977626224,0.0643,96578.0,96577.0,0.2070362]
[1738977626431,0.0759602,96578.0,96577.0,0.2070362]
[1738977626727,0.2864419,96594.0,96577.0,0.2070362]
[1738977626928,0.01201998,96589.0,96577.0,0.2070362]
[1738977627127,0.00015533,96588.0,96578.0,0.3608]
[1738977627330,0.00015533,96588.0,96587.0,0.3608]
[1738977627636,0.03185533,96588.0,96586.0,0.5678157]
[1738977627825,0.03185533,96588.0,96586.0,0.2070157]
[1738977628030,0.2070274,96582.0,96578.0,0.00056]
[1738977628233,0.3608,96579.0,96573.0,0.00015533]
[1738977629436,0.3608,96579.0,96574.0,0.2070413]
[1738977631222,0.3608,96579.0,96574.0,0.001]
[1738977631428,0.2070353,96578.0,96574.0,0.001]
[1738977632238,0.37336616,96579.0,96574.0,0.001]
[1738977632239,0.2070405,96575.0,96574.0,0.001]
[1738977633942,0.2070405,96575.0,96573.0,0.00015533]
[1738977634243,0.2070405,96575.0,96574.0,0.001]
[1738977634744,0.2070459,96573.0,96560.0,0.33073278]
[1738977635035,0.3608,96567.0,96563.0,0.12366178]
[1738977635237,0.0638,96566.0,96560.0,0.207071]
[1738977635931,0.0638,96566.0,96560.0,0.211071]
[1738977636541,0.0638,96566.0,96560.0,0.004]
[1738977636931,0.3608,96567.0,96560.0,0.004]
[1738977637133,0.3174486,96572.0,96560.0,0.004]
[1738977637635,0.2384486,96572.0,96564.0,0.2070622]
[1738977639140,0.2384486,96572.0,96564.0,0.2090622]
[1738977640429,0.2384486,96572.0,96564.0,0.2140622]
[1738977642342,0.2384486,96572.0,96565.0,0.2070606]
[1738977643243,0.2384486,96572.0,96566.0,0.2070587]
[1738977643838,0.2384486,96572.0,96567.0,0.2070567]
[1738977644140,0.0314,96572.0,96565.0,0.004]
[1738977644537,0.0314,96572.0,96570.0,0.2070494]
[1738977645140,0.0677,96578.0,96570.0,0.2070494]
[1738977646339,0.2070362,96577.0,96570.0,0.2070494]
[1738977647050,0.0677,96578.0,96570.0,0.2090494]
[1738977647244,0.20704,96576.0,96570.0,0.2090494]
[1738977647843,0.00092,96579.0,96570.0,0.002]
[1738977648053,0.15423664,96583.0,96578.0,0.3608]
[1738977648258,0.15423664,96583.0,96579.0,0.2070319]
[1738977648441,0.15423664,96583.0,96580.0,0.01608819]
[1738977648644,0.15423664,96583.0,96581.0,0.01608819]
[1738977648954,0.15423664,96583.0,96582.0,0.01608819]
[1738977649147,0.15423664,96585.0,96570.0,0.002]
[1738977649448,0.3608,96576.0,96571.0,0.01608929]
[1738977649663,0.3608,96576.0,96572.0,0.01608929]
[1738977649945,0.08896,96584.0,96573.0,0.01608929]
[1738977650151,0.08896,96584.0,96570.0,0.12566178]
[1738977650152,0.08896,96584.0,96574.0,0.01608929]
[1738977650446,0.08896,96584.0,96570.0,0.12366178]
[1738977650652,0.08896,96584.0,96571.0,0.01612682]
[1738977650851,0.08896,96584.0,96572.0,0.01812682]
[1738977651042,0.08896,96584.0,96573.0,0.01612682]
[1738977651242,0.08896,96584.0,96574.0,0.01612682]
[1738977651551,0.15423664,96585.0,96574.0,0.001]
[1738977652951,0.15423664,96585.0,96572.0,0.002]
[1738977653358,0.15423664,96581.0,96572.0,0.002]
[1738977653653,0.15423664,96581.0,96574.0,0.001]
[1738977654049,0.15423664,96581.0,96572.0,0.002]
[1738977654651,0.15423664,96581.0,96573.0,0.2070449]
[1738977655952,0.37345383,96586.0,96573.0,0.2070449]
[1738977655953,0.15423664,96585.0,96573.0,0.2070449]
[1738977656159,0.15423664,96585.0,96573.0,0.2080449]
[1738977656361,0.15423664,96585.0,96573.0,0.001]
[1738977656556,0.15423664,96585.0,96577.0,0.2070358]
[1738977657360,0.15423664,96585.0,96573.0,0.001]
[1738977657556,0.15423664,96585.0,96583.0,0.2070225]
[1738977658157,0.15423664,96585.0,96583.0,0.2421225]
[1738977658357,0.15423664,96585.0,96584.0,0.0352]
[1738977658754,0.00015533,96588.0,96587.0,0.2070148]
[1738977660566,0.00015533,96588.0,96587.0,0.22319303]
[1738977661255,0.00015533,96588.0,96587.0,0.22419303]
[1738977665269,0.1,96600.0,96599.0,0.2069891]
[1738977665461,0.2069454,96620.0,96608.0,0.2069688]
[1738977665462,0.24143664,96614.0,96608.0,0.2069688]
[1738977665663,0.24143664,96614.0,96610.0,0.2069651]
[1738977666355,0.15423664,96614.0,96610.0,0.2069651]
[1738977666556,0.15423664,96614.0,96602.0,0.12366178]
[1738977666859,0.16564216,96614.0,96613.0,0.2069591]
[1738977668753,0.16564216,96614.0,96613.0,0.2079591]
[1738977669969,0.16564216,96614.0,96613.0,0.002]
[1738977670168,0.01140552,96614.0,96613.0,0.002]
[1738977670365,0.2069549,96615.0,96613.0,0.002]
[1738977671358,0.2069549,96615.0,96613.0,0.001]
[1738977671560,0.2069549,96615.0,96613.0,0.002]
[1738977672961,0.3729334,96618.0,96613.0,0.002]
[1738977673162,0.3720934,96618.0,96613.0,0.002]
[1738977673563,0.0112934,96618.0,96617.0,0.3608]
[1738977673758,0.00015533,96621.0,96618.0,0.2069484]
[1738977674369,0.00015533,96621.0,96617.0,0.3608]
[1738977674664,0.00015533,96621.0,96619.0,0.2069442]
[1738977676470,0.00015533,96621.0,96619.0,0.2079442]